bitfinex-derivatives/quotes_SOLF0:USTF0_20260306
["timestamp","ask_amount","ask_price","bid_price","bid_amount"]
[1772760714658,2.96602325,88.869,88.771,8.75485646]
[1772760715465,2.96602325,88.869,88.783,10.136]
[1772760716463,3.00776148,88.851,88.771,8.75485646]
[1772760717564,3.02146158,88.869,88.771,8.75485646]
[1772760717958,3.03739173,88.843,88.773,8.75485646]
[1772760718563,3.03739173,88.839,88.773,8.75485646]
[1772760718974,10.131,88.83,88.773,8.75485646]
[1772760719156,3.03739173,88.839,88.773,8.75485646]
[1772760719760,10.13,88.838,88.773,8.75485646]
[1772760719956,9.5852792,88.85,88.773,8.75485646]
[1772760720161,3.11532592,88.859,88.773,8.75485646]
[1772760720559,3.11532592,88.859,88.795,8.56777131]
[1772760720764,8.58860002,88.901,88.795,8.56777131]
[1772760720765,3.11532592,88.882,88.795,8.56777131]
[1772760721064,3.11532592,88.882,88.816,8.56777131]
[1772760721265,3.11532592,88.882,88.791,8.56777131]
[1772760722162,3.11532592,88.882,88.758,157.722]
[1772760722163,3.11532592,88.882,88.814,8.56777131]
[1772760722560,3.11532592,88.882,88.83,10.131]
[1772760723761,3.20936707,88.902,88.841,10.129]
[1772760724159,3.20936707,88.902,88.832,8.56777131]
[1772760725463,10.123,88.9,88.834,10.13]
[1772760725859,3.20936707,88.902,88.835,8.56777131]
[1772760726064,3.27415499,88.929,88.835,8.56777131]
[1772760726258,3.27415499,88.909,88.835,8.56777131]
[1772760726464,3.27415499,88.909,88.811,8.56777131]
[1772760727469,3.28363304,88.892,88.827,10.131]
[1772760727768,3.28363304,88.889,88.811,8.56777131]
[1772760727963,10.125,88.877,88.811,8.56777131]
[1772760728265,3.28363304,88.889,88.811,8.56777131]
[1772760728662,3.29790664,88.909,88.823,8.56777131]
[1772760729065,10.122,88.908,88.842,10.129]
[1772760729267,3.33567114,88.907,88.823,8.56777131]
[1772760730071,3.34960012,88.893,88.823,8.56777131]
[1772760730469,10.125,88.879,88.823,8.56777131]
[1772760730869,3.34960012,88.878,88.799,8.56777131]
[1772760731366,8.62399341,88.909,88.726,157.78]
[1772760731367,3.34025701,88.858,88.777,8.56777131]
[1772760731768,10.131,88.828,88.777,8.56777131]
[1772760731960,12.92553621,88.84,88.777,8.56777131]
[1772760732169,3.35390332,88.859,88.777,8.56777131]
[1772760732367,9.5852792,88.84,88.777,8.56777131]
[1772760732763,10.132,88.818,88.777,8.56777131]
[1772760733069,3.36742643,88.839,88.777,8.56777131]
[1772760733465,10.13,88.838,88.779,10.136]
[1772760734368,3.36742643,88.839,88.777,8.56777131]
[1772760734369,10.131,88.829,88.777,8.56777131]
[1772760735166,3.33816014,88.879,88.78,9.5852792]
[1772760735371,3.33816014,88.879,88.781,8.56777131]
[1772760735568,9.5852792,88.87,88.781,8.56777131]
[1772760735766,9.5852792,88.9,88.798,8.56777131]
[1772760735961,3.33816014,88.901,88.811,8.56777131]
[1772760736669,10.123,88.9,88.837,8.56777131]
[1772760736859,3.36373003,88.899,88.8,9.54894445]
[1772760737064,3.36373003,88.899,88.818,8.56777131]
[1772760737261,3.37215605,88.85,88.788,8.56777131]
[1772760737463,3.37215605,88.849,88.769,8.56777131]
[1772760738173,10.131,88.825,88.769,8.56777131]
[1772760739174,10.13,88.836,88.781,8.56777131]
[1772760739772,3.37215605,88.849,88.781,8.56777131]
[1772760740072,10.131,88.825,88.781,8.56777131]
[1772760740365,10.131,88.825,88.769,10.138]
[1772760740966,3.37215605,88.849,88.77,8.56777131]
[1772760741673,10.13,88.836,88.783,10.136]
[1772760742267,10.13,88.836,88.774,8.56777131]
[1772760743270,3.37760465,88.829,88.752,8.56777131]
[1772760743864,9.54894445,88.83,88.752,8.56777131]
[1772760743865,13.52251746,88.813,88.752,18.70777131]
[1772760744271,3.38939548,88.809,88.721,8.56777131]
[1772760744471,10.135,88.794,88.721,8.56777131]
[1772760744676,3.38939548,88.809,88.721,8.56777131]
[1772760745481,3.38939548,88.809,88.737,8.56777131]
[1772760746475,10.134,88.805,88.747,10.14]
[1772760747275,3.36414998,88.799,88.738,8.56777131]
[1772760748481,10.135,88.797,88.738,8.56777131]
[1772760748882,3.3880363,88.818,88.738,8.56777131]
[1772760749084,9.54894445,88.8,88.739,8.98862654]
[1772760749479,3.40688347,88.799,88.739,8.98862654]
[1772760750181,10.136,88.78,88.739,8.98862654]
[1772760750577,9.54894445,88.8,88.739,8.98862654]
[1772760752075,10.135,88.796,88.739,8.98862654]
[1772760752279,9.54894445,88.8,88.739,8.98862654]
[1772760752480,10.135,88.797,88.739,8.98862654]
[1772760752687,10.135,88.797,88.74,8.48701864]
[1772760752982,10.136,88.788,88.74,8.48701864]
[1772760753185,3.37883761,88.799,88.722,8.48701864]
[1772760753789,10.136,88.781,88.722,18.63001864]
[1772760754485,10.135,88.791,88.727,8.48701864]
[1772760756587,10.135,88.791,88.728,8.48701864]
[1772760756787,10.136,88.783,88.728,8.48701864]
[1772760757779,9.54894445,88.76,88.684,8.48701864]
[1772760757982,13.05302721,88.76,88.684,8.48701864]
[1772760758791,3.50408276,88.759,88.687,8.48701864]
[1772760758988,9.54894445,88.74,88.687,8.48701864]
[1772760759290,3.58036232,88.749,88.687,8.48701864]
[1772760761392,10.14,88.747,88.689,10.147]
[1772760762288,10.14,88.747,88.689,18.63401864]
[1772760763293,10.141,88.738,88.689,8.48701864]
[1772760763994,10.142,88.728,88.668,8.48701864]
[1772760764190,3.77911701,88.758,88.668,8.48701864]
[1772760765188,9.54894445,88.77,88.689,8.48701864]
[1772760765392,4.00537991,88.777,88.689,8.48701864]
[1772760765690,10.138,88.768,88.717,10.143]
[1772760765888,4.01450382,88.769,88.692,8.48701864]
[1772760766193,13.56353748,88.79,88.717,8.48701864]
[1772760766695,4.01459303,88.789,88.717,8.48701864]
[1772760767088,10.137,88.772,88.719,10.143]
[1772760767393,4.01459303,88.789,88.72,8.48701864]
[1772760768393,4.01459303,88.789,88.734,8.48701864]
[1772760770186,20.26,88.84,88.737,8.48701864]
[1772760770187,10.134,88.801,88.737,8.48701864]
[1772760770387,5.11485398,88.806,88.737,8.48701864]
[1772760771397,14.74505765,88.82,88.756,8.48701864]
[1772760772186,24.87705765,88.82,88.757,10.139]
[1772760772386,15.3281132,88.82,88.758,8.48701864]
[1772760773095,10.133,88.81,88.758,8.48701864]
[1772760774094,5.1961132,88.82,88.762,8.48701864]
[1772760774290,5.22134449,88.838,88.762,8.48701864]
[1772760775400,10.133,88.814,88.762,8.48701864]
[1772760775599,5.23950087,88.819,88.741,8.48701864]
[1772760776491,10.134,88.805,88.743,8.48701864]
[1772760776696,5.23950087,88.819,88.743,8.48701864]
[1772760777492,10.132,88.817,88.747,8.48701864]
[1772760777893,10.134,88.805,88.747,8.48701864]
[1772760779094,10.132,88.815,88.748,8.48701864]
[1772760779598,10.132,88.815,88.74,9.54894445]
[1772760779599,10.132,88.815,88.76,8.48701864]
[1772760780710,5.30714958,88.805,88.721,8.70919029]
[1772760781099,5.30714958,88.805,88.73,8.70919029]
[1772760781297,5.30714958,88.805,88.663,20.3]
[1772760781298,5.44317623,88.799,88.701,8.70919029]
[1772760781599,10.135,88.789,88.732,8.70919029]
[1772760782202,10.135,88.789,88.734,8.70919029]
[1772760782600,5.45120552,88.78,88.701,8.70919029]
[1772760782998,5.24921781,88.798,88.723,8.70919029]
[1772760783602,10.135,88.797,88.745,8.70919029]
[1772760784504,5.24921781,88.798,88.747,8.70919029]
[1772760785404,5.24921781,88.798,88.751,10.14]
[1772760785805,4.9039263,88.815,88.761,8.70919029]
[1772760786601,4.9039263,88.815,88.764,8.70919029]
[1772760787213,4.88082033,88.813,88.764,8.70919029]
[1772760788414,4.88082033,88.813,88.765,10.138]
[1772760788615,4.88082033,88.813,88.765,18.84719029]
[1772760788816,8.67861202,88.839,88.766,8.70919029]
[1772760789114,4.89498761,88.839,88.766,8.70919029]
[1772760790416,10.131,88.831,88.776,10.137]
[1772760791319,10.131,88.828,88.767,8.70919029]
[1772760792516,10.131,88.828,88.77,8.70919029]
[1772760793417,10.131,88.828,88.772,8.70919029]
[1772760793621,4.994364,88.83,88.772,8.70919029]
[1772760794525,4.994364,88.83,88.777,8.70919029]
[1772760795523,4.994364,88.83,88.782,10.136]
[1772760796623,4.994364,88.83,88.777,8.70919029]
[1772760796824,5.00811635,88.829,88.761,8.70919029]
[1772760797419,5.00811635,88.829,88.762,8.70919029]
[1772760798422,15.13911635,88.829,88.771,8.70919029]
[1772760798618,5.05250582,88.828,88.771,8.70919029]
[1772760799123,5.05250582,88.828,88.783,8.70919029]
[1772760799424,5.09006093,88.849,88.783,8.70919029]
[1772760800523,8.66606677,88.888,88.73,219.772]
[1772760800524,5.09655211,88.879,88.801,8.70919029]
[1772760802123,5.14168843,88.87,88.801,8.70919029]
[1772760802913,10.127,88.86,88.806,10.133]
[1772760803115,4.92824923,88.859,88.801,8.70919029]
[1772760804123,10.128,88.856,88.801,8.70919029]
[1772760805226,10.128,88.856,88.804,10.134]
[1772760806727,10.127,88.865,88.811,8.70919029]
[1772760807229,10.128,88.852,88.811,8.70919029]
[1772760807819,4.97392402,88.851,88.799,8.70919029]
[1772760808429,4.99064244,88.848,88.778,8.99519047]
[1772760808633,4.99064244,88.839,88.778,8.99519047]
[1772760809125,5.02870427,88.857,88.782,8.99519047]
[1772760809629,5.02870427,88.857,88.78,9.5649041]
[1772760809630,5.02870427,88.855,88.792,8.99519047]
[1772760810129,15.17095994,88.854,88.794,9.38674523]
[1772760810624,5.04295994,88.853,88.794,9.38674523]
[1772760811527,4.89022084,88.851,88.797,10.134]
[1772760812427,10.13,88.839,88.794,9.38674523]
[1772760812621,4.89539841,88.829,88.763,9.38674523]
[1772760812826,4.89539841,88.829,88.741,9.38674523]
[1772760813224,15.03431493,88.803,88.749,10.14]
[1772760813423,4.90031493,88.803,88.75,9.38674523]
[1772760814229,9.5649041,88.81,88.758,9.38674523]
[1772760815030,9.5649041,88.81,88.759,10.139]
[1772760816331,9.5649041,88.81,88.758,9.38674523]
[1772760817635,4.89975108,88.836,88.761,9.38674523]
[1772760818928,4.9101069,88.827,88.761,9.38674523]
[1772760819836,20.253,88.869,88.761,9.38674523]
[1772760819837,4.9101069,88.844,88.761,9.38674523]
[1772760820233,4.91480957,88.819,88.762,10.138]
[1772760820936,4.92075705,88.809,88.741,9.38674523]
[1772760821733,10.132,88.817,88.741,9.38674523]
[1772760821936,4.92075705,88.829,88.741,9.38674523]
[1772760822238,4.92539643,88.819,88.741,9.38674523]
[1772760822634,10.133,88.809,88.758,10.139]
[1772760823836,10.133,88.809,88.741,9.38674523]
[1772760823837,4.5918993,88.806,88.749,9.38674523]
[1772760824143,4.59197913,88.819,88.749,9.38674523]
[1772760824441,3.57226766,88.8,88.751,9.38674523]
[1772760824940,3.57226766,88.81,88.762,9.38674523]
[1772760825735,3.57226766,88.81,88.767,10.138]
[1772760826139,3.57226766,88.82,88.768,9.38674523]
[1772760826335,3.57226766,88.83,88.784,9.38674523]
[1772760826533,3.57226766,88.85,88.791,9.38674523]
[1772760826738,3.57226766,88.85,88.801,9.38674523]
[1772760827042,3.57226766,88.86,88.801,9.38674523]
[1772760827239,3.57226766,88.86,88.747,157.742]
[1772760827240,3.57226766,88.86,88.813,9.38674523]
[1772760827847,13.73454297,88.908,88.81,3.57226766]
[1772760827848,3.57226766,88.87,88.826,9.38674523]
[1772760828435,4.61071438,88.885,88.831,10.131]
[1772760828634,8.70594404,88.897,88.832,9.38674523]
[1772760828947,4.61502416,88.911,88.832,9.38674523]
[1772760829238,4.66966965,88.91,88.846,9.38674523]
[1772760829642,4.66966965,88.91,88.846,19.51574523]
[1772760831245,10.122,88.909,88.85,9.38674523]
[1772760831443,14.94735401,88.909,88.85,9.38674523]
[1772760832341,4.82935507,88.905,88.85,9.38674523]
[1772760833442,10.121,88.913,88.854,9.38674523]
[1772760834147,4.83429183,88.919,88.857,10.128]
[1772760834347,4.83429183,88.919,88.858,9.38674523]
[1772760834754,9.55295573,88.93,88.858,9.38674523]
[1772760835147,9.55295573,88.93,88.878,9.38674523]
[1772760835349,4.84498933,88.929,88.878,9.38674523]
[1772760840347,10.118,88.939,88.878,9.38674523]
[1772760840554,15.05757084,88.939,88.878,9.38674523]
[1772760840852,10.119,88.935,88.878,9.38674523]
[1772760841444,4.94598416,88.958,88.898,9.56044034]
[1772760842252,4.94598416,88.958,88.9,9.56044034]
[1772760843150,4.94598416,88.958,88.904,9.56044034]
[1772760843354,4.94598416,88.958,88.861,9.56044034]
[1772760843748,9.55295573,88.96,88.904,9.56044034]
[1772760843951,10.115,88.97,88.904,9.56044034]
[1772760844351,10.115,88.97,88.915,19.68144034]
[1772760844551,4.85150003,88.976,88.916,9.56044034]
[1772760844853,4.85509097,88.992,88.916,9.56044034]
[1772760845748,14.0529042,88.98,88.929,9.56044034]
[1772760845954,4.49994847,88.979,88.929,9.56044034]
[1772760846356,9.55295573,88.98,88.929,9.56044034]
[1772760846551,4.5034203,88.996,88.929,9.56044034]
[1772760847047,10.112,88.993,88.933,9.56044034]
[1772760847251,3.54128128,88.993,88.933,9.56044034]
[1772760847452,9.55295573,89.0,88.933,9.56044034]
[1772760847650,10.112,88.998,88.943,10.118]
[1772760847955,10.112,88.998,88.933,9.56044034]
[1772760848156,3.54447337,88.999,88.933,9.56044034]
[1772760848655,3.54447337,88.999,88.934,9.56044034]
[1772760849056,3.54447337,88.999,88.918,9.56044034]
[1772760849258,9.55295573,88.98,88.922,9.56044034]
[1772760850458,9.55295573,88.98,88.929,9.56044034]
[1772760850654,3.54681071,88.999,88.929,9.56044034]
[1772760851257,3.50469336,88.989,88.915,9.56044034]
[1772760851758,3.50469336,88.989,88.919,9.56044034]
[1772760852160,9.55295573,88.97,88.919,9.56044034]
[1772760853359,19.66795573,88.97,88.919,9.56044034]
[1772760854758,3.60980966,88.988,88.919,9.56044034]
[1772760855060,3.61290918,88.999,88.922,9.56044034]
[1772760855358,3.43192293,88.979,88.924,10.12]
[1772760855758,3.43192293,88.979,88.925,9.56044034]
[1772760856761,3.43482897,88.999,88.927,9.56044034]
[1772760857756,3.43482897,88.999,88.93,9.56044034]
[1772760858362,2.85918175,88.979,88.901,9.56044034]
[1772760858866,2.85918175,88.979,88.918,9.56044034]
[1772760860160,2.85918175,88.979,88.92,9.56044034]
[1772760861162,10.115,88.971,88.922,10.12]
[1772760861467,10.115,88.971,88.923,9.56044034]
[1772760861667,2.85918175,88.979,88.907,9.56044034]
[1772760861868,10.117,88.954,88.907,9.56044034]
[1772760862163,2.86224265,88.964,88.907,9.56044034]
[1772760862369,2.86202305,88.959,88.89,9.56044034]
[1772760862568,10.119,88.934,88.89,9.56044034]
[1772760863174,9.53712386,88.94,88.85,9.53712386]
[1772760863175,2.8732642,88.939,88.874,9.56044034]
[1772760863870,10.119,88.936,88.874,9.56044034]
[1772760864574,2.8732642,88.939,88.886,9.56044034]
[1772760864868,9.53712386,88.94,88.886,9.56044034]
[1772760865567,10.118,88.946,88.886,9.56044034]
[1772760866480,10.118,88.946,88.87,9.53712386]
[1772760866481,10.118,88.946,88.896,9.56044034]
[1772760867869,2.8636301,88.939,88.871,9.56044034]
[1772760868070,2.86628887,88.956,88.884,9.56044034]
[1772760868381,10.117,88.954,88.884,9.56044034]
[1772760868572,2.86628887,88.956,88.884,9.56044034]
[1772760869364,2.86628887,88.956,88.87,9.53712386]
[1772760869365,2.86628887,88.956,88.891,9.40808763]
[1772760870469,10.117,88.954,88.897,8.85803379]
[1772760870666,9.53712386,88.97,88.897,8.85803379]
[1772760871065,12.41932667,88.97,88.897,8.85803379]
[1772760871270,2.88220281,88.969,88.897,8.85803379]
[1772760872071,10.116,88.956,88.897,8.85803379]
[1772760872276,2.88455993,88.949,88.871,8.85803379]
[1772760873477,2.88455993,88.949,88.877,8.85803379]
[1772760874076,10.117,88.95,88.889,8.85803379]
[1772760874276,2.92675779,88.965,88.833,157.591]
[1772760874277,2.92675779,88.983,88.891,8.85803379]
[1772760875474,10.113,88.982,88.93,8.85803379]
[1772760875983,9.53712386,88.99,88.941,8.85803379]
[1772760876176,11.25,89.018,88.941,8.85803379]
[1772760876582,11.25,89.018,88.961,8.85803379]
[1772760877175,20.48287392,89.029,88.961,8.85803379]
[1772760877380,11.25,89.027,88.961,8.85803379]
[1772760877582,19.34287392,89.016,88.961,8.85803379]
[1772760877772,9.23287392,89.016,88.931,8.85803379]
[1772760877973,9.23287392,88.999,88.931,8.85803379]
[1772760878582,9.23287392,88.995,88.931,8.85803379]
[1772760879483,9.53712386,89.0,88.931,8.85803379]
[1772760879698,9.23287392,89.011,88.942,8.85803379]
[1772760879881,9.53712386,89.02,88.942,8.85803379]
[1772760880286,9.53712386,89.02,88.93,9.53712386]
[1772760880287,10.109,89.019,88.956,8.85803379]
[1772760881378,9.23287392,89.011,88.945,10.118]
[1772760881578,9.23287392,89.011,88.939,8.85803379]
[1772760881785,9.23287392,88.999,88.939,8.85803379]
[1772760883179,10.114,88.978,88.924,8.85803379]
[1772760883679,9.23287392,88.977,88.891,8.85803379]
[1772760884276,9.23287392,88.966,88.902,18.98003379]
[1772760884478,9.23287392,88.959,88.902,8.85803379]
[1772760886287,19.34887392,88.959,88.902,8.85803379]
[1772760887780,10.117,88.951,88.902,8.85803379]
[1772760888187,10.118,88.942,88.884,8.85803379]
[1772760888986,10.117,88.951,88.886,8.85803379]
[1772760890393,9.23287392,88.957,88.894,8.85803379]
[1772760890588,9.53712386,88.96,88.894,8.85803379]
[1772760890795,10.116,88.963,88.894,8.85803379]
[1772760891189,10.115,88.972,88.908,8.85803379]
[1772760891789,10.115,88.972,88.913,8.85803379]
[1772760891990,9.23287392,88.992,88.913,8.85803379]
[1772760892292,9.23287392,88.992,88.91,9.53712386]
[1772760892293,9.23287392,88.992,88.932,8.85803379]
[1772760892587,9.23287392,88.992,88.891,8.85803379]
[1772760892990,9.23287392,88.992,88.922,10.12]
[1772760893193,9.23287392,88.992,88.92,8.85803379]
[1772760893795,9.23287392,88.979,88.92,8.85803379]
[1772760893994,9.23287392,88.978,88.92,8.85803379]
[1772760894888,9.53712386,88.99,88.92,8.85803379]
[1772760895794,19.34587392,88.983,88.923,10.12]
[1772760895992,10.113,88.983,88.923,10.12]
[1772760896296,9.23287392,88.982,88.923,18.97803379]
[1772760897099,9.53712386,88.99,88.933,8.85803379]
[1772760897390,9.23287392,89.0,88.933,8.85803379]
[1772760897697,10.111,88.999,88.942,10.118]
[1772760897894,9.23287392,89.0,88.943,8.85803379]
[1772760899297,10.111,88.999,88.945,8.85803379]
[1772760899492,9.53712386,89.01,88.945,8.85803379]
[1772760900196,9.53712386,89.01,88.92,9.53712386]
[1772760900197,9.53712386,89.01,88.958,9.6838998]
[1772760900396,19.34187392,89.017,88.958,9.6838998]
[1772760900600,8.88719929,89.009,88.941,9.6838998]
[1772760900901,8.88719929,89.009,88.953,9.6838998]
[1772760902198,18.42432315,89.04,88.955,9.6838998]
[1772760902409,18.42432315,89.04,88.904,157.464]
[1772760902410,9.53712386,89.06,88.961,9.6838998]
[1772760902603,9.53712386,89.06,88.948,157.385]
[1772760902604,8.60480509,89.074,88.981,9.6838998]
[1772760902899,8.88719929,89.074,89.009,9.6838998]
[1772760903097,8.88719929,89.113,89.01,9.53712386]
[1772760903304,0.00098031,89.097,89.044,9.6838998]
[1772760903698,0.00098031,89.097,89.071,10.103]
[1772760903899,0.00098031,89.097,89.072,9.6838998]
[1772760904203,8.88719929,89.173,89.081,9.6838998]
[1772760904503,8.88719929,89.173,89.08,9.53712386]
[1772760904504,8.88719929,89.194,89.118,9.6838998]
[1772760904705,156.849,89.254,89.081,9.6838998]
[1772760904706,8.88719929,89.179,89.081,9.6838998]
[1772760904903,8.88719929,89.159,89.084,9.6838998]
[1772760905100,9.53712386,89.14,89.084,9.6838998]
[1772760905305,8.88719929,89.139,89.041,9.6838998]
[1772760905502,8.88719929,89.139,89.07,9.6838998]
[1772760905802,9.53712386,89.17,89.07,9.6838998]
[1772760906001,9.53712386,89.17,89.047,157.211]
[1772760906002,9.53712386,89.17,89.081,9.6838998]
[1772760906301,9.53712386,89.17,89.097,9.6838998]
[1772760906896,9.53712386,89.17,89.08,9.53712386]
[1772760906897,8.88719929,89.176,89.103,9.6838998]
[1772760907405,8.88719929,89.172,89.103,9.6838998]
[1772760908010,18.97919929,89.171,89.103,9.6838998]
[1772760908207,156.913,89.217,89.08,9.6838998]
[1772760908208,8.88719929,89.159,89.08,9.6838998]
[1772760908909,8.88719929,89.159,89.096,9.6838998]
[1772760909105,1.95229226,89.219,89.096,9.6838998]
[1772760909106,8.88719929,89.189,89.096,9.6838998]
[1772760910210,8.88719929,89.169,89.087,9.6838998]
[1772760911601,8.88719929,89.167,89.087,19.7848998]
[1772760911805,8.88719929,89.167,89.08,9.53712386]
[1772760911806,8.88719929,89.167,89.088,9.6838998]
[1772760912105,1.95229226,89.219,89.051,9.6838998]
[1772760912106,8.88719929,89.149,89.051,9.6838998]
[1772760912299,8.88719929,89.129,89.051,9.6838998]
[1772760912500,9.53712386,89.11,89.051,9.6838998]
[1772760912706,8.88719929,89.129,89.051,9.6838998]
[1772760912905,8.88719929,89.129,89.057,9.6838998]
[1772760913110,8.88719929,89.149,89.057,9.6838998]
[1772760913410,8.88719929,89.145,89.073,9.6838998]
[1772760914211,8.88719929,89.138,89.073,9.6838998]
[1772760914408,8.88719929,89.138,88.994,157.305]
[1772760914409,8.88719929,89.138,89.051,9.6838998]
[1772760914712,18.42432315,89.12,89.051,9.6838998]
[1772760915414,8.88719929,89.143,89.053,9.6838998]
[1772760915813,8.88719929,89.129,89.053,9.6838998]
[1772760916113,10.098,89.117,89.053,9.6838998]
[1772760916902,8.88719929,89.129,89.053,9.6838998]
[1772760917507,8.88719929,89.129,89.054,9.6838998]
[1772760918704,10.098,89.115,89.054,9.6838998]
[1772760918907,9.53712386,89.13,89.054,9.6838998]
[1772760919108,8.88719929,89.148,89.054,9.6838998]
[1772760919405,8.88719929,89.103,89.035,9.6838998]
[1772760920210,10.101,89.087,89.035,9.6838998]
[1772760920612,157.051,89.138,88.939,157.402]
[1772760920613,9.51143278,89.07,88.991,9.6838998]
[1772760920810,18.39863207,89.07,88.991,9.6838998]
[1772760921315,9.51143278,89.09,89.006,9.6838998]
[1772760922109,9.51143278,89.09,88.99,9.51143278]
[1772760922110,8.88719929,89.087,89.013,9.6838998]
[1772760923117,9.51143278,89.07,89.013,9.6838998]
[1772760923310,8.88719929,89.087,89.013,9.6838998]
[1772760923514,18.99019929,89.078,89.013,9.6838998]
[1772760923716,8.88719929,89.077,89.013,9.6838998]
[1772760924515,10.104,89.068,89.013,9.6838998]
[1772760925021,10.105,89.058,88.993,9.6838998]
[1772760926218,8.88719929,89.058,88.996,9.6838998]
[1772760927017,8.88719929,89.08,88.996,9.6838998]
[1772760927730,8.88719929,89.08,88.99,9.51143278]
[1772760927731,9.51143278,89.12,89.031,9.6838998]
[1772760928025,9.51143278,89.12,89.03,9.51143278]
[1772760928026,10.098,89.117,89.05,19.7898998]
[1772760928224,10.098,89.117,89.051,9.6838998]
[1772760928420,9.41687151,89.17,89.071,9.51211042]
[1772760928621,9.41687151,89.17,89.055,157.198]
[1772760928622,9.41687151,89.17,89.114,10.098]
[1772760928821,9.41687151,89.17,89.109,9.51211042]
[1772760929021,9.41687151,89.169,89.1,10.1]
[1772760929220,9.41687151,89.169,89.101,9.51211042]
[1772760929420,9.41687151,89.189,89.101,9.51211042]
[1772760929820,9.41687151,89.189,89.108,9.51211042]
[1772760929821,10.092,89.174,89.108,9.51211042]
[1772760930026,9.41687151,89.189,89.108,9.51211042]
[1772760930723,10.09,89.185,89.122,19.34751745]
[1772760930922,10.09,89.185,89.123,9.25051745]
[1772760931328,9.41687151,89.189,89.103,9.25051745]
[1772760931624,9.32528495,89.169,89.083,9.25051745]
[1772760932023,9.32528495,89.169,89.085,9.25051745]
[1772760932829,10.093,89.166,89.085,9.25051745]
[1772760933028,9.32528495,89.159,89.085,9.25051745]
[1772760933526,9.32528495,89.159,89.086,9.25051745]
[1772760934030,9.51143278,89.22,89.1,9.25051745]
[1772760934031,10.092,89.167,89.1,9.25051745]
[1772760934728,10.094,89.156,89.1,9.25051745]
[1772760935324,19.41728495,89.168,89.1,9.25051745]
[1772760936029,9.32528495,89.168,89.101,9.25051745]
[1772760937127,9.32528495,89.159,89.071,9.25051745]
[1772760937525,30.59291968,89.233,89.122,9.25051745]
[1772760937526,9.51143278,89.18,89.122,9.25051745]
[1772760937726,10.09,89.19,89.122,9.25051745]
[1772760938127,9.32528495,89.196,89.122,9.25051745]
[1772760938322,10.091,89.178,89.122,9.25051745]
[1772760939122,10.093,89.167,89.099,9.25051745]
[1772760939325,156.913,89.217,89.024,157.252]
[1772760939326,9.32528495,89.159,89.071,9.25051745]
[1772760939723,10.095,89.144,89.074,10.103]
[1772760939923,10.095,89.144,89.075,9.25051745]
[1772760940523,10.095,89.144,89.077,9.25051745]
[1772760940734,10.094,89.155,89.077,9.25051745]
[1772760940934,9.32528495,89.159,89.077,9.25051745]
[1772760941135,10.096,89.134,89.077,9.25051745]
[1772760941837,9.32528495,89.133,89.055,9.25051745]
[1772760942433,9.51143278,89.14,89.067,9.25051745]
[1772760942633,9.32528495,89.152,89.067,9.25051745]
[1772760943136,9.32528495,89.142,89.067,9.25051745]
[1772760943334,9.32528495,89.139,89.067,9.25051745]
[1772760943636,10.099,89.112,89.067,9.25051745]
[1772760944033,9.32528495,89.139,89.067,9.25051745]
[1772760944435,10.098,89.122,89.067,9.25051745]
[1772760945137,10.099,89.112,89.067,9.25051745]
[1772760945538,10.099,89.112,89.045,9.25051745]
[1772760946230,9.32528495,89.139,89.059,9.25051745]
[1772760946634,10.098,89.119,89.059,9.25051745]
[1772760946941,9.32528495,89.099,89.02,9.25051745]
[1772760947437,10.102,89.08,89.025,9.25051745]
[1772760948037,9.32528495,89.097,89.001,9.25051745]
[1772760948237,10.103,89.071,89.002,9.25051745]
[1772760948436,9.32528495,89.074,89.002,9.25051745]
[1772760949439,13.8639993,89.132,89.0,9.51143278]
[1772760949440,9.32528495,89.095,89.038,10.107]
[1772760949840,9.32528495,89.095,89.038,19.35751745]
[1772760950239,9.51143278,89.1,89.042,10.107]
[1772760950542,9.51143278,89.1,89.039,9.25051745]
[1772760951042,9.51143278,89.1,89.02,9.51143278]
[1772760951043,9.32528495,89.099,89.02,9.25051745]
[1772760951343,10.1,89.098,89.041,10.107]
[1772760952541,9.32528495,89.099,89.041,10.107]
[1772760952942,9.32528495,89.099,89.039,9.25051745]
[1772760953142,9.32528495,89.099,89.031,10.108]
[1772760953439,9.32528495,89.099,89.021,9.25051745]
[1772760953944,10.1,89.096,89.03,9.25051745]
[1772760954639,9.32528495,89.099,89.031,9.25051745]
[1772760954640,10.101,89.087,89.031,9.25051745]
[1772760954942,9.32528495,89.099,89.031,9.25051745]
[1772760955146,10.102,89.087,89.031,9.25051745]
[1772760955441,9.32528495,89.099,89.031,9.25051745]
[1772760956033,9.32528495,89.099,89.034,9.25051745]